fUSD/lending_fUSD_20260319
["ID","MTS","AMOUNT","RATE_DAILY","PERIOD"]
[408607896,1773938761181,300.0,6.87e-05,2]
[408607897,1773938821532,300.0,6.87e-05,2]
[408607900,1773938882881,195.0,6.87e-05,2]
[408607901,1773938941493,300.0,6.87e-05,2]
[408607902,1773938973754,241.11690104,6.863e-05,2]
[408607903,1773939001154,300.0,6.87e-05,2]
[408607904,1773939001397,1200.0,6.87e-05,2]
[408607905,1773939002944,209.0,6.871e-05,2]
[408607906,1773939006765,158.0,6.863e-05,3]
[408607907,1773939007002,158.0,8.377e-05,3]
[408607913,1773939032226,-3751.07825437,6.871e-05,2]
[408607914,1773939032238,-26419.51665086,6.871e-05,2]
[408607915,1773939032253,-2445.95087844,6.871e-05,2]
[408607916,1773939032271,-1390.0,6.871e-05,2]
[408607917,1773939032283,-87555.40502446,6.871e-05,2]
[408607918,1773939032295,-1254.41808677,6.871e-05,2]
[408607923,1773939035939,4904.70868378,6.771e-05,2]
[408607924,1773939035965,10000.01,6.771e-05,2]
[408607925,1773939035989,10000.01,6.771e-05,2]
[408607926,1773939036013,10000.01,6.771e-05,2]
[408607927,1773939036040,10000.01,6.771e-05,2]
[408607928,1773939036064,10000.01,6.771e-05,2]
[408607929,1773939036090,10000.01,6.771e-05,2]
[408607930,1773939036122,10000.01,6.771e-05,2]
[408607931,1773939036146,10000.01,6.771e-05,2]
[408607932,1773939036170,10000.01,6.771e-05,2]
[408607933,1773939036193,5000.01,6.771e-05,2]
[408607934,1773939036217,5000.01,6.771e-05,2]
[408607935,1773939036241,5000.01,6.771e-05,2]
[408607936,1773939036264,5000.01,6.771e-05,2]
[408607937,1773939036287,5000.01,6.771e-05,2]
[408607938,1773939036311,5000.01,6.771e-05,2]
[408607939,1773939036335,5000.01,6.771e-05,2]
[408607940,1773939036358,5000.01,6.771e-05,2]
[408607941,1773939036382,5000.01,6.771e-05,2]
[408607942,1773939036405,5000.01,6.771e-05,2]
[408607943,1773939036437,1883.84346178,6.771e-05,2]
[408607944,1773939036466,2377.97553642,6.771e-05,2]
[408607945,1773939036493,722.8955016,6.771e-05,2]
[408607946,1773939036897,-5000.01,6.771e-05,2]
[408607947,1773939036919,-5000.01,6.771e-05,2]
[408607948,1773939036929,-5000.01,6.771e-05,2]
[408607949,1773939036940,-5000.01,6.771e-05,2]
[408607950,1773939036958,-5000.01,6.771e-05,2]
[408607951,1773939037004,-5000.01,6.771e-05,2]
[408607952,1773939037058,-5000.01,6.771e-05,2]
[408607953,1773939037157,-5000.01,6.771e-05,2]
[408607954,1773939037435,-5000.01,6.771e-05,2]
[408607955,1773939037498,-5000.01,6.771e-05,2]
[408607957,1773939038129,-69680.72616859,6.771e-05,2]
[408607958,1773939038141,-2324.60473146,6.771e-05,2]
[408607959,1773939038151,-736.79673736,6.771e-05,2]
[408607960,1773939038162,-363.22806146,6.771e-05,2]
[408607961,1773939038343,-109590.10006783,6.771e-05,2]
[408607966,1773939040331,-305.11934148,6.771e-05,2]
[408607967,1773939040547,-347.795,6.771e-05,2]
[408607968,1773939040559,-456.08607894,6.771e-05,2]
[408607969,1773939040650,-338.004,6.771e-05,2]
[408607983,1773939043335,-986.72954921,6.771e-05,2]
[408607984,1773939043441,-2098.72357344,6.771e-05,2]
[408607985,1773939043452,-515.11882297,6.771e-05,2]
[408607986,1773939043495,-1139.33803329,6.771e-05,2]
[408607987,1773939043526,-142.27032526,6.771e-05,2]
[408607988,1773939043537,-2184.17582962,6.771e-05,2]
[408607994,1773939045970,-350.88499915,6.771e-05,2]
[408607995,1773939046029,-41503.89060164,6.771e-05,2]
[408607996,1773939046048,-34626.88184264,6.771e-05,2]
[408607997,1773939046337,-4406.12723286,6.771e-05,2]
[408607998,1773939046353,-1620.66192896,6.771e-05,2]
[408608000,1773939046417,-6994.32072799,6.771e-05,2]
[408608001,1773939046442,-10000.01,6.771e-05,2]
[408608002,1773939046532,-10000.01,6.771e-05,2]
[408608003,1773939046642,-10000.01,6.771e-05,2]
[408608004,1773939046743,-10000.01,6.771e-05,2]
[408608006,1773939047170,-10000.01,6.771e-05,2]
[408608007,1773939047194,-10000.01,6.771e-05,2]
[408608008,1773939047210,-10000.01,6.771e-05,2]
[408608009,1773939047284,-10000.01,6.771e-05,2]
[408608010,1773939047378,-10000.01,6.771e-05,2]
[408608011,1773939047484,-10000.01,6.771e-05,2]
[408608012,1773939047598,-10000.01,6.771e-05,2]
[408608013,1773939047694,-10000.01,6.771e-05,2]
[408608014,1773939047797,-10000.01,6.771e-05,2]
[408608015,1773939047925,-10000.01,6.771e-05,2]
[408608016,1773939049279,-10000.01,6.771e-05,2]
[408608017,1773939049407,-10000.01,6.771e-05,2]
[408608018,1773939049507,-10000.01,6.771e-05,2]
[408608019,1773939049607,-10000.01,6.771e-05,2]
[408608020,1773939049718,-10000.01,6.771e-05,2]
[408608021,1773939049830,-10000.01,6.771e-05,2]
[408608022,1773939049929,-10000.01,6.771e-05,2]
[408608023,1773939050039,-10000.01,6.771e-05,2]
[408608024,1773939050132,-10000.01,6.771e-05,2]
[408608025,1773939050241,-10000.01,6.771e-05,2]
[408608026,1773939304668,158.0,6.771e-05,3]
[408608027,1773939304906,158.0,8.675e-05,3]
[408608028,1773939552130,2333.42,3.47e-05,2]
[408608029,1773939552337,2333.42,3.653e-05,2]
[408608030,1773939552547,2333.42,3.835e-05,2]
[408608031,1773939552787,2333.42,4.018e-05,2]
[408608032,1773939553194,2333.42,4.2e-05,2]
[408608033,1773939553407,2333.42,4.383e-05,2]
[408608034,1773939553958,2333.42,4.566e-05,2]
[408608035,1773939553991,2333.42,4.748e-05,2]
[408608036,1773939554021,2333.42,4.931e-05,2]
[408608037,1773939554220,2333.42,5.114e-05,2]
[408608038,1773939554455,2333.42,5.296e-05,2]
[408608039,1773939554605,2333.42,5.479e-05,2]
[408608040,1773939554802,2333.42,5.661e-05,2]
[408608041,1773939554998,2333.42,5.844e-05,2]
[408608042,1773939555214,2333.42,6.027e-05,2]
[408608043,1773939555446,2333.42,6.209e-05,2]
[408608044,1773939555637,2333.42,6.392e-05,2]
[408608046,1773939608897,158.0,6.771e-05,3]
[408608049,1773939907206,158.0,6.771e-05,3]
[408608050,1773939914162,1376.33,6.571e-05,2]
[408608051,1773940007033,-7155.9813237,0.0001789,120]
[408608052,1773940007096,-10000.0,0.00026301,120]
[408608053,1773940007117,-313.0,0.00027397,120]
[408608054,1773940007146,-1000.0,0.0003,120]
[408608055,1773940007165,-1026.56104635,0.0003,120]
[408608056,1773940007185,-160.0,0.0003,120]
[408608057,1773940007205,-160.0,0.0003,120]
[408608058,1773940018131,-1078.84762063,0.00030136,120]
[408608059,1773940018156,-500.0,0.00030136,120]
[408608060,1773940018176,-525.45975473,0.00030136,120]
[408608061,1773940018196,-245.03,0.00030411,120]
[408608062,1773940018216,-979.16666667,0.00031,120]
[408608063,1773940018236,-10000.0,0.000312,120]
[408608064,1773940018255,-800.0,0.00031505,120]
[408608065,1773940018276,-800.0,0.00032,120]
[408608066,1773940018299,-1400.0,0.00032,120]
[408608067,1773940018318,-184.88313879,0.00032,120]
[408608068,1773940018339,-238.18147852,0.00032,120]
[408608069,1773940018360,-177.02854517,0.00032,120]
[408608070,1773940018381,-181.29809503,0.00032,120]
[408608071,1773940018400,-170.8640617,0.00032,120]
[408608072,1773940018419,-194.43583051,0.00032,120]
[408608073,1773940018441,-800.0,0.00032601,120]
[408608074,1773940018462,-2000.0,0.00032877,120]
[408608075,1773940018487,-2000.0,0.00032877,120]
[408608076,1773940018508,-2000.0,0.00032877,120]
[408608077,1773940018528,-2000.0,0.00032877,120]
[408608078,1773940018553,-2000.0,0.00032877,120]
[408608079,1773940018573,-2575.0,0.00032877,120]
[408608080,1773940018594,-162.0,0.00033,120]
[408608081,1773940018614,-238.18147852,0.00033,120]
[408608082,1773940018634,-177.02854517,0.00033,120]
[408608083,1773940018653,-181.29809503,0.00033,120]
[408608084,1773940018674,-170.8640617,0.00033,120]
[408608085,1773940018694,-194.43583051,0.00033,120]
[408608086,1773940024594,157.64135999,0.00033,120]
[408608087,1773940025659,159.67159843,0.00033,120]
[408608088,1773940035397,170.86406171,0.00032,120]
[408608089,1773940035796,181.29809502,0.00032,120]
[408608091,1773940046746,1780.0,0.00033,120]
[408608092,1773940047541,560.69035188,0.00033,120]
[408608093,1773940049191,194.43583051,0.00032,120]
[408608094,1773940076975,8623.68,6.5e-05,2]
[408608095,1773940076999,1376.34,6.5e-05,2]
[408608096,1773940080707,178.63610889,0.00032,120]
[408608097,1773940081262,178.63610889,0.00033,120]
[408608098,1773940083308,177.02854516,0.00032,120]
[408608099,1773940110919,1023.0,0.00033,120]
[408608116,1773940164517,1019.33066793,0.00033,120]
[408608117,1773940169808,8623.67,6.412e-05,2]
[408608118,1773940169831,10000.01,6.412e-05,2]
[408608119,1773940169852,10000.01,6.412e-05,2]
[408608120,1773940169876,10000.01,6.412e-05,2]
[408608121,1773940169899,10000.01,6.412e-05,2]
[408608122,1773940169922,10000.01,6.412e-05,2]
[408608123,1773940169943,10000.01,6.412e-05,2]
[408608124,1773940170212,10000.01,6.412e-05,2]
[408608125,1773940170237,10000.01,6.412e-05,2]
[408608126,1773940170259,10000.01,6.412e-05,2]
[408608127,1773940170280,237764.21,6.412e-05,2]
[408608128,1773940170427,883.0,0.00033,120]
[408608129,1773940207898,791.60060597,0.00033,120]
[408608134,1773940232437,-969.80549567,6.575e-05,2]
[408608135,1773940232707,-1363.61450433,6.575e-05,2]
[408608136,1773940232717,-250.0,6.575e-05,2]
[408608137,1773940232728,-207.0,6.575e-05,2]
[408608138,1773940232741,-300.0,6.668e-05,2]
[408608139,1773940232751,-300.0,6.668e-05,2]
[408608140,1773940232762,-300.0,6.668e-05,2]
[408608141,1773940232773,-1200.0,6.668e-05,2]
[408608142,1773940232784,-160.0,6.669e-05,2]
[408608143,1773940232795,-150.0,6.669e-05,2]
[408608144,1773940232806,-300.0,6.669e-05,2]
[408608145,1773940232816,-222.91051544,6.669e-05,2]
[408608146,1773940232826,-483.44806507,6.669e-05,2]
[408608147,1773940232837,-421.62817908,6.669e-05,2]
[408608148,1773940232847,-178.97673708,6.669e-05,2]
[408608149,1773940232856,-500.0,6.669e-05,2]
[408608150,1773940232867,-500.0,6.669e-05,2]
[408608152,1773940232878,-500.0,6.669e-05,2]
[408608154,1773940232888,-208.51445305,6.669e-05,2]
[408608156,1773940232898,-1169.24883411,6.669e-05,2]
[408608158,1773940232907,-1169.24883411,6.669e-05,2]
[408608160,1773940232918,-1169.24883411,6.669e-05,2]
[408608162,1773940232928,-1169.24883411,6.669e-05,2]
[408608164,1773940232937,-1169.24883411,6.669e-05,2]
[408608166,1773940232947,-1169.24883411,6.669e-05,2]
[408608168,1773940232956,-1169.24883411,6.669e-05,2]
[408608170,1773940232966,-1169.24883411,6.669e-05,2]
[408608171,1773940232977,-1169.24883411,6.669e-05,2]
[408608173,1773940232988,-1169.24883411,6.669e-05,2]
[408608175,1773940232999,-1169.24883411,6.669e-05,2]
[408608176,1773940233010,-1169.24883411,6.669e-05,2]
[408608177,1773940233020,-1169.24883411,6.669e-05,2]
[408608178,1773940233030,-1169.24883411,6.669e-05,2]
[408608179,1773940233042,-1169.24883411,6.669e-05,2]
[408608181,1773940233052,-1169.24883411,6.669e-05,2]
[408608182,1773940233063,-1169.24883411,6.669e-05,2]
[408608183,1773940233073,-1169.24883411,6.669e-05,2]
[408608184,1773940233083,-1169.24883411,6.669e-05,2]
[408608185,1773940233093,-1169.24883411,6.669e-05,2]
[408608186,1773940233103,-1169.24883411,6.669e-05,2]
[408608187,1773940233114,-1169.24883411,6.669e-05,2]
[408608188,1773940233124,-1169.24883411,6.669e-05,2]
[408608189,1773940233134,-1169.24883411,6.669e-05,2]
[408608190,1773940233145,-1169.24883411,6.669e-05,2]
[408608191,1773940233155,-1169.24883411,6.669e-05,2]
[408608192,1773940233165,-1169.24883411,6.669e-05,2]
[408608193,1773940233175,-1169.24883411,6.669e-05,2]
[408608194,1773940233186,-1169.24883411,6.669e-05,2]
[408608195,1773940233196,-1169.24883411,6.669e-05,2]
[408608196,1773940233206,-1169.24883411,6.669e-05,2]
[408608197,1773940233218,-1169.24883411,6.669e-05,2]
[408608198,1773940233230,-1169.24883411,6.669e-05,2]
[408608199,1773940233241,-1169.24883411,6.669e-05,2]
[408608200,1773940233252,-1169.24883411,6.669e-05,2]
[408608201,1773940233264,-1169.24883411,6.669e-05,2]
[408608202,1773940233275,-1169.24883411,6.669e-05,2]
[408608203,1773940233287,-1169.24883411,6.669e-05,2]
[408608204,1773940233298,-1169.24883411,6.669e-05,2]
[408608205,1773940233311,-1169.24883411,6.669e-05,2]
[408608206,1773940233322,-1169.24883411,6.669e-05,2]
[408608207,1773940233335,-1169.24883411,6.669e-05,2]
[408608208,1773940233347,-1169.24883411,6.669e-05,2]
[408608209,1773940233359,-1169.24883411,6.669e-05,2]
[408608210,1773940233371,-1169.24883411,6.669e-05,2]
[408608211,1773940233383,-1169.24883411,6.669e-05,2]
[408608212,1773940233393,-1169.24883411,6.669e-05,2]
[408608213,1773940233404,-1169.24883411,6.669e-05,2]
[408608214,1773940233414,-1169.24883411,6.669e-05,2]
[408608215,1773940233425,-1169.24883411,6.669e-05,2]
[408608216,1773940233435,-1169.24883411,6.669e-05,2]
[408608217,1773940233445,-1169.24883411,6.669e-05,2]
[408608218,1773940233456,-1169.24883411,6.669e-05,2]
[408608219,1773940233467,-1169.24883411,6.669e-05,2]
[408608220,1773940233478,-1169.24883411,6.669e-05,2]
[408608221,1773940233489,-1169.24883411,6.669e-05,2]
[408608222,1773940233718,-1169.24883411,6.669e-05,2]
[408608223,1773940233730,-1169.24883411,6.669e-05,2]
[408608224,1773940233740,-1169.24883411,6.669e-05,2]
[408608225,1773940233751,-1169.24883411,6.669e-05,2]
[408608226,1773940233762,-1169.24883411,6.669e-05,2]
[408608227,1773940233773,-1169.24883411,6.669e-05,2]
[408608228,1773940233784,-1169.24883411,6.669e-05,2]
[408608229,1773940233795,-1210.80616189,6.669e-05,2]
[408608230,1773940233805,-1210.80616189,6.669e-05,2]
[408608231,1773940233815,-1210.80616189,6.669e-05,2]
[408608232,1773940233826,-1210.80616189,6.669e-05,2]
[408608233,1773940233836,-1210.80616189,6.669e-05,2]
[408608234,1773940233846,-1210.80616189,6.669e-05,2]
[408608235,1773940233857,-1210.80616189,6.669e-05,2]
[408608236,1773940233868,-1210.80616189,6.669e-05,2]
[408608237,1773940233879,-1210.80616189,6.669e-05,2]
[408608238,1773940233890,-1210.80616189,6.669e-05,2]
[408608239,1773940233900,-1210.80616189,6.669e-05,2]
[408608240,1773940233910,-1210.80616189,6.669e-05,2]
[408608241,1773940233920,-1210.80616189,6.669e-05,2]
[408608242,1773940233931,-1210.80616189,6.669e-05,2]
[408608243,1773940233940,-1210.80616189,6.669e-05,2]
[408608244,1773940233951,-1210.80616189,6.669e-05,2]
[408608245,1773940233962,-1210.80616189,6.669e-05,2]
[408608246,1773940233972,-1210.80616189,6.669e-05,2]
[408608247,1773940233982,-1210.80616189,6.669e-05,2]
[408608248,1773940233991,-1210.80616189,6.669e-05,2]
[408608249,1773940234001,-1210.80616189,6.669e-05,2]
[408608250,1773940234010,-1210.80616189,6.669e-05,2]
[408608251,1773940234020,-1210.80616189,6.669e-05,2]
[408608252,1773940234029,-1210.80616189,6.669e-05,2]
[408608253,1773940234039,-1210.80616189,6.669e-05,2]
[408608254,1773940234049,-1210.80616189,6.669e-05,2]
[408608255,1773940234059,-74334.76674233,6.67e-05,2]
[408608256,1773940234072,-202625.51400052,6.67e-05,2]
[408608257,1773940234085,-252418.95521075,6.67e-05,2]
[408608258,1773940234100,-265884.56943372,6.67e-05,2]
[408608266,1773940238529,-915.68180285,6.67e-05,2]
[408608279,1773940238851,-719.17,6.67e-05,2]
[408608283,1773940240478,-1316.30482803,6.67e-05,2]
[408608284,1773940240741,-631596.6754818,6.67e-05,2]
[408608285,1773940240750,-500.0,6.753e-05,2]
[408608286,1773940240759,-500.0,6.753e-05,2]
[408608287,1773940240769,-1862.3592182,6.753e-05,2]
[408608288,1773940240778,-2333.42,6.757e-05,2]
[408608289,1773940240787,-4525.72,6.77e-05,2]
[408608290,1773940240796,-215.05,6.77e-05,2]
[408608291,1773940240805,-18365.6154217,6.771e-05,2]
[408608292,1773940240814,-136639.0085304,6.771e-05,2]
[408608293,1773940240822,-12176.3842486,6.771e-05,2]
[408608294,1773940240831,-500.0,6.771e-05,2]
[408608295,1773940240840,-2333.42,6.94e-05,2]
[408608296,1773940240849,-1885.8,6.987e-05,2]
[408608297,1773940240858,-250.0,7.232e-05,2]
[408608298,1773940240867,-250.0,7.232e-05,2]
[408608299,1773940240877,-999.99,7.252e-05,2]
[408608300,1773940240887,-9999.99,7.252e-05,2]
[408608301,1773940240896,-9999.99,7.252e-05,2]
[408608302,1773940240905,-150.99,7.252e-05,2]
[408608303,1773940240915,-299.99,7.252e-05,2]
[408608304,1773940240924,-4156.4,7.252e-05,2]
[408608305,1773940240933,-430.84,7.252e-05,2]
[408608306,1773940240944,-150.99,7.252e-05,2]
[408608307,1773940240952,-7162.23,7.252e-05,2]
[408608308,1773940240962,-9999.99,7.252e-05,2]
[408608309,1773940240971,-65309.61,7.252e-05,2]
[408608310,1773940240980,-14807.5,7.252e-05,2]
[408608311,1773940240990,-1000.0,7.301e-05,2]
[408608312,1773940240999,-1600.0,7.311e-05,2]
[408608313,1773940241007,-420.0,7.335e-05,2]
[408608314,1773940241018,-1680.0,7.335e-05,2]
[408608315,1773940241027,-255.0,7.336e-05,2]
[408608316,1773940241036,-420.0,7.336e-05,2]
[408608317,1773940241044,-500.0,7.393e-05,2]
[408608318,1773940241053,-168.99330662,7.393e-05,2]
[408608319,1773940241062,-500.0,7.393e-05,2]
[408608320,1773940241071,-502.27112461,7.393e-05,2]
[408608321,1773940241080,-500.0,7.393e-05,2]
[408608322,1773940241089,-500.0,7.393e-05,2]
[408608323,1773940241097,-500.0,7.393e-05,2]
[408608324,1773940241106,-503.4494406,7.394e-05,2]
[408608325,1773940241115,-500.0,7.404e-05,2]
[408608326,1773940241124,-500.0,7.404e-05,2]
[408608327,1773940241133,-136639.0085304,7.514e-05,2]
[408608328,1773940241142,-210.7,7.599e-05,2]
[408608329,1773940241151,-500.0,7.803e-05,2]
[408608330,1773940241160,-1506.28638887,7.848e-05,2]
[408608331,1773940241169,-387.0,7.887e-05,2]
[408608332,1773940241178,-500.0,7.941e-05,2]
[408608333,1773940241187,-500.0,7.941e-05,2]
[408608334,1773940241196,-1000.0,7.941e-05,2]
[408608335,1773940241206,-1000.0,7.941e-05,2]
[408608336,1773940241215,-500.0,7.95e-05,2]
[408608337,1773940241224,-13280.08,8.027e-05,2]
[408608338,1773940241233,-587.0,8.068e-05,2]
[408608339,1773940241242,-2351.0,8.068e-05,2]
[408608340,1773940241251,-433.0,8.07e-05,2]
[408608341,1773940241260,-587.0,8.07e-05,2]
[408608342,1773940241270,-2716.9185674,8.123e-05,2]
[408608343,1773940241279,-4097.9227102,8.157e-05,2]
[408608344,1773940241287,-4965.175586,8.178e-05,2]
[408608345,1773940241296,-250.0,8.199e-05,2]
[408608346,1773940241305,-150.0,8.219e-05,2]
[408608347,1773940241314,-150.0,8.219e-05,2]
[408608348,1773940241323,-150.0,8.219e-05,2]
[408608349,1773940241331,-150.0,8.219e-05,2]
[408608350,1773940241342,-150.0,8.219e-05,2]
[408608351,1773940241353,-250.0,8.219e-05,2]
[408608352,1773940241361,-500.0,8.219e-05,2]
[408608353,1773940241370,-335.53713655,8.219e-05,2]
[408608354,1773940241381,-500.0,8.219e-05,2]
[408608355,1773940241390,-500.0,8.219e-05,2]
[408608356,1773940241399,-1700.0,8.219e-05,2]
[408608357,1773940241408,-1700.0,8.219e-05,2]
[408608358,1773940241419,-1700.0,8.219e-05,2]
[408608359,1773940241428,-1700.0,8.219e-05,2]
[408608360,1773940241437,-6475.35,8.219e-05,2]
[408608361,1773940241446,-500.0,8.219e-05,2]
[408608362,1773940241455,-2000.0,8.219e-05,2]
[408608363,1773940241464,-1600.0,8.225e-05,2]
[408608364,1773940241473,-136639.0085304,8.257e-05,2]
[408608365,1773940241482,-606.226475,8.425e-05,2]
[408608366,1773940241491,-914.3701506,8.466e-05,2]
[408608367,1773940241500,-500.0,8.489e-05,2]
[408608368,1773940241509,-500.0,8.493e-05,2]
[408608369,1773940241519,-252.53,8.822e-05,2]
[408608370,1773940241528,-823.0,8.875e-05,2]
[408608371,1773940241537,-3292.0,8.875e-05,2]
[408608372,1773940241546,-736.0,8.877e-05,2]
[408608373,1773940241566,-186.0,8.877e-05,2]
[408608374,1773940241575,-387.0,8.887e-05,2]
[408608375,1773940241584,-136639.0085304,9.001e-05,2]
[408608376,1773940241594,-1600.0,9.139e-05,2]
[408608377,1773940241604,-2000.0,9.247e-05,2]
[408608378,1773940241613,-1500.0,9.247e-05,2]
[408608379,1773940241622,-3934.15,9.313e-05,2]
[408608380,1773940241631,-16346.49,9.336e-05,2]
[408608381,1773940241641,-44974.99751809,9.548e-05,2]
[408608382,1773940241650,-1152.0,9.763e-05,2]
[408608383,1773940241659,-4609.0,9.763e-05,2]
[408608384,1773940241668,-1252.0,9.764e-05,2]
[408608385,1773940241677,-500.0,9.796e-05,2]
[408608386,1773940241686,-387.0,9.887e-05,2]
[408608387,1773940241696,-157.68,9.98e-05,2]
[408608388,1773940241705,-159.99463555,0.0001,2]
[408608389,1773940241714,-161.33681696,0.0001,2]
[408608390,1773940241724,-162.0935509,0.0001,2]
[408608391,1773940241733,-153.77462995,0.0001,2]
[408608392,1773940241743,-253.59002998,0.0001,2]
[408608393,1773940241751,-151.0,0.0001,2]
[408608394,1773940241761,-500.0,0.0001,2]
[408608395,1773940241771,-500.0,0.0001,2]
[408608396,1773940241781,-500.0,0.0001,2]
[408608397,1773940241790,-500.0,0.0001,2]
[408608398,1773940241799,-532.10249534,0.0001,2]
[408608399,1773940241808,-151.0,0.0001,2]
[408608400,1773940241818,-151.0,0.0001,2]
[408608401,1773940241827,-151.0,0.0001,2]
[408608402,1773940241836,-151.0,0.0001,2]
[408608403,1773940241845,-151.0,0.0001,2]
[408608404,1773940241854,-151.0,0.0001,2]
[408608405,1773940241864,-151.0,0.0001,2]
[408608406,1773940241873,-151.0,0.0001,2]
[408608407,1773940241883,-151.0,0.0001,2]
[408608408,1773940241893,-151.0,0.0001,2]
[408608409,1773940241902,-151.0,0.0001,2]
[408608410,1773940241911,-151.0,0.0001,2]
[408608411,1773940241925,-151.0,0.0001,2]
[408608412,1773940241935,-151.0,0.0001,2]
[408608413,1773940241944,-151.0,0.0001,2]
[408608414,1773940241954,-151.0,0.0001,2]
[408608415,1773940241963,-151.0,0.0001,2]
[408608416,1773940241972,-151.0,0.0001,2]
[408608417,1773940241982,-151.0,0.0001,2]
[408608418,1773940241991,-500.0,0.0001,2]
[408608419,1773940242000,-151.0,0.0001,2]
[408608420,1773940242010,-151.0,0.0001,2]
[408608421,1773940242021,-500.0,0.0001,2]
[408608422,1773940242031,-151.0,0.0001,2]
[408608423,1773940242040,-500.0,0.0001,2]
[408608424,1773940242050,-151.0,0.0001,2]
[408608425,1773940242059,-500.0,0.0001,2]
[408608426,1773940242069,-151.0,0.0001,2]
[408608427,1773940242078,-528.30089606,0.0001,2]
[408608428,1773940242088,-151.0,0.0001,2]
[408608429,1773940242098,-151.0,0.0001,2]
[408608430,1773940242112,-151.0,0.0001,2]
[408608431,1773940242122,-151.0,0.0001,2]
[408608432,1773940242132,-151.0,0.0001,2]
[408608433,1773940242141,-151.0,0.0001,2]
[408608434,1773940242151,-151.0,0.0001,2]
[408608435,1773940242162,-200.0,0.0001,2]
[408608436,1773940242172,-151.0,0.0001,2]
[408608437,1773940242181,-151.0,0.0001,2]
[408608438,1773940242190,-151.0,0.0001,2]
[408608439,1773940242199,-284.86442761,0.0001,2]
[408608440,1773940242211,-338.0,0.0001,2]
[408608441,1773940242221,-338.0,0.0001,2]
[408608442,1773940242230,-338.67985043,0.0001,2]
[408608443,1773940242239,-1563.29800388,0.0001,2]
[408608444,1773940242249,-626.2358179,0.0001,2]
[408608445,1773940242258,-1600.0,0.00010053,2]
[408608446,1773940242268,-2000.0,0.00010274,2]
[408608447,1773940242279,-2560.0,0.00010321,2]
[408608448,1773940242288,-354.1991389,0.0001049,2]
[408608449,1773940242297,-200.0,0.00010548,2]
[408608450,1773940242310,-157.68,0.00010693,2]
[408608451,1773940242320,-1613.0,0.00010739,2]
[408608452,1773940242329,-6453.0,0.00010739,2]
[408608453,1773940242341,-2129.0,0.00010744,2]
[408608454,1773940242352,-387.0,0.00010887,2]
[408608455,1773940242361,-979.16666667,0.00010902,2]
[408608456,1773940242371,-160.0,0.00010902,2]
[408608457,1773940242382,-160.0,0.00010902,2]
[408608458,1773940242393,-330.358412,0.00010929,2]
[408608459,1773940242403,-275.696888,0.00010929,2]
[408608460,1773940242414,-170.571433,0.00010929,2]
[408608461,1773940242424,-207.377068,0.00010929,2]
[408608462,1773940242434,-150.0,0.00010959,2]
[408608463,1773940242445,-166.66,0.00010959,2]
[408608464,1773940242455,-150.0,0.00010959,2]
[408608465,1773940242466,-1600.0,0.00010967,2]
[408608466,1773940242477,-1254.0,0.00011,2]
[408608467,1773940242488,-166.66,0.00011015,2]
[408608468,1773940242500,-166.66,0.00011068,2]
[408608469,1773940242514,-1275.00631374,0.00011073,2]
[408608470,1773940242530,-3988.66058895,0.00011078,2]
[408608471,1773940242540,-214.12244339,0.00011078,2]
[408608472,1773940242551,-200.0,0.00011096,2]
[408608473,1773940242561,-26596.98788362,0.00011099,2]
[408608474,1773940242572,-26596.98788362,0.00011099,2]
[408608475,1773940242582,-26596.98788362,0.00011099,2]
[408608476,1773940242592,-26596.98788362,0.00011099,2]
[408608477,1773940242602,-26596.98788362,0.00011099,2]
[408608478,1773940242612,-212741.11436486,0.00011152,2]
[408608479,1773940242623,-166.66,0.00011178,2]
[408608480,1773940242632,-150.0,0.00011233,2]
[408608481,1773940242643,-1215.0,0.00011249,2]
[408608482,1773940242654,-924.0,0.00011249,2]
[408608483,1773940242663,-6006.0,0.00011249,2]
[408608484,1773940242674,-2465.0,0.00011249,2]
[408608485,1773940242684,-414.0,0.00011249,2]
[408608486,1773940242695,-166.66,0.00011288,2]
[408608487,1773940242707,-2000.0,0.00011301,2]
[408608488,1773940242719,-166.66,0.00011379,2]
[408608489,1773940243007,-166.66,0.00011397,2]
[408608490,1773940243019,-157.68,0.00011406,2]